[Event "AICF Women GM 2018"]
[Site "Mumbai"]
[Date "2018.06.12"]
[Round "1"]
[White "Tokhirjonova, Gulrukhbegim"]
[Black "Tomilova, Elena"]
[Result "1/2-1/2"]
[ECO "E13"]
[WhiteElo "2379"]
[BlackElo "2334"]
[Annotator "NA"]
[PlyCount "58"]
[EventDate "2018.??.??"]
[EventType "tourn"]
[EventCountry "IND"]
[SourceTitle "playchess.com"]
[Source "ChessBase"]
[SourceQuality "1"]
[TimeControl "40/5400+30:1800+30"]

1. d4 {[%emt 0:00:00]} Nf6 {[%emt 0:00:07]} 2. c4 {[%emt 0:00:01]} e6 {[%emt 0:00:07]} 3. Nc3 {[%emt 0:00:21]} Bb4 {[%emt 0:00:13]} 4. Nf3 {[%emt 0:00:32]} b6 {[%emt 0:00:12]} 5. Bg5 {[%emt 0:00:50]} h6 {[%emt 0:00:42]} 6. Bh4 {[%emt 0:00:30]} Bb7 {[%emt 0:00:29]} 7. Nd2 {[%emt 0:01:03]} Nc6 {[%emt 0:03:16]} 8. e3 {[%emt 0:01:39]} Ne7 {[%emt 0:00:29]} 9. f3 {[%emt 0:06:57]} Nf5 {[%emt 0:00:17]} 10. Bf2 {[%emt 0:00:09]} c5 {[%emt 0:00:03]} 11. Bd3 {[%emt 0:03:01]} cxd4 {[%emt 0:00:44]} 12. exd4 {[%emt 0:00:43]} O-O {[%emt 0:00:37]} 13. O-O {[%emt 0:09:59]} d5 {[%emt 0:04:35]} 14. a3 {[%emt 0:15:30]} Bd6 {[%emt 0:10:31]} 15. c5 {[%emt 0:16:24]} bxc5 {[%emt 0:04:08]} 16. dxc5 {[%emt 0:00:14]} d4 {[%emt 0:02:03]} 17. Nce4 {[%emt 0:02:11]} Bf4 {[%emt 0:04:44]} 18. Nxf6+ {[%emt 0:10:43]} Qxf6 {[%emt 0:00:07]} 19. Ne4 {[%emt 0:03:52]} Qe5 {[%emt 0:02:33]} 20. g3 {[%emt 0:04:05]} Be3 {[%emt 0:00:18]} 21. Qe2 {[%emt 0:04:48]} Rfd8 {[%emt 0:08:56]} 22. b4 {[%emt 0:02:50]} Bxe4 {[%emt 0:15:51]} 23. fxe4 {[%emt 0:00:15]} Nxg3 {[%emt 0:00:31]} 24. hxg3 {[%emt 0:00:42]} Qxg3+ {[%emt 0:00:03]} 25. Kh1 {[%emt 0:00:07]} Qh3+ {[%emt 0:00:10]} 26. Kg1 {[%emt 0:00:07]} Qg3+ {[%emt 0:00:01]} 27. Kh1 {[%emt 0:00:14]} Qh3+ {[%emt 0:00:04]} 28. Kg1 {[%emt 0:00:05]} Qg3+ {[%emt 0:00:07]} 29. Kh1 {[%emt 0:00:09]} Qh3+ {[%emt 0:00:07]} 1/2-1/2

[Event "AICF Women GM 2018"]
[Site "Mumbai"]
[Date "2018.06.12"]
[Round "1"]
[White "Nakhbayeva, Guliskhan"]
[Black "Monnisha, G K"]
[Result "1-0"]
[ECO "E41"]
[WhiteElo "2323"]
[BlackElo "2295"]
[Annotator "NA"]
[PlyCount "97"]
[EventDate "2018.??.??"]
[EventType "tourn"]
[EventCountry "IND"]
[SourceTitle "playchess.com"]
[Source "ChessBase"]
[SourceQuality "1"]
[TimeControl "40/5400+30:1800+30"]

1. d4 {[%emt 0:00:00]} Nf6 {[%emt 0:00:22]} 2. c4 {[%emt 0:00:00]} e6 {[%emt 0:00:05]} 3. Nc3 {[%emt 0:00:00]} Bb4 {[%emt 0:00:05]} 4. e3 {[%emt 0:00:00]} c5 {[%emt 0:00:06]} 5. Bd3 {[%emt 0:00:54]} Nc6 {[%emt 0:00:15]} 6. Nf3 {[%emt 0:00:55]} Bxc3+ 7. bxc3 {[%emt 0:00:04]} d6 {[%emt 0:00:20]} 8. O-O {[%emt 0:02:36]} h6 {[%emt 0:01:51]} 9. e4 {[%emt 0:01:47]} e5 {[%emt 0:00:09]} 10. d5 {[%emt 0:00:09]} Ne7 {[%emt 0:00:14]} 11. Nh4 {[%emt 0:00:19]} g5 {[%emt 0:01:22]} 12. Qf3 {[%emt 0:04:49]} Nfg8 {[%emt 0:01:26]} 13. Nf5 {[%emt 0:01:26]} Nxf5 {[%emt 0:00:34]} 14. exf5 {[%emt 0:00:06]} Nf6 {[%emt 0:06:02]} 15. Rb1 {[%emt 0:07:17]} Qe7 {[%emt 0:05:39]} 16. Re1 {[%emt 0:04:44]} Rb8 {[%emt 0:07:44]} 17. Qd1 {[%emt 0:06:30]} Bd7 {[%emt 0:03:54]} 18. f4 {[%emt 0:03:02]} gxf4 {[%emt 0:03:51]} 19. Bxf4 {[%emt 0:00:06]} Rg8 {[%emt 0:03:14]} 20. Rb2 {[%emt 0:06:49]} Kd8 {[%emt 0:02:48]} 21. Bxh6 {[%emt 0:15:13]} Ng4 {[%emt 0:01:42]} 22. Bf4 {[%emt 0:03:14]} Qf6 {[%emt 0:04:46]} 23. Bg3 {[%emt 0:01:05]} Qg5 {[%emt 0:17:18]} 24. Qf3 {[%emt 0:02:23]} Nf6 {[%emt 0:04:15]} 25. Qf2 {[%emt 0:12:24]} Rh8 {[%emt 0:04:01]} 26. h3 {[%emt 0:03:12]} Rh5 {[%emt 0:03:26]} 27. Rf1 {[%emt 0:05:04]} b6 {[%emt 0:03:19]} 28. Re2 {[%emt 0:03:09]} Kc7 {[%emt 0:01:39]} 29. Qe1 {[%emt 0:03:33]} Rg8 {[%emt 0:01:25]} 30. Rf3 {[%emt 0:00:05]} Kb7 {[%emt 0:01:29]} 31. Bc2 {[%emt 0:03:22]} Nh7 {[%emt 0:06:21]} 32. a4 {[%emt 0:04:30]} Qh6 {[%emt 0:03:19]} 33. h4 {[%emt 0:00:46]} Rg4 {[%emt 0:03:53]} 34. a5 {[%emt 0:03:28]} Nf6 {[%emt 0:03:47]} 35. Bd3 {[%emt 0:02:16]} Qh7 {[%emt 0:02:08]} 36. axb6 axb6 {[%emt 0:02:55]} 37. Ra2 {[%emt 0:02:00]} Qg8 {[%emt 0:00:06]} 38. Qa1 {[%emt 0:01:00]} Qb8 {[%emt 0:00:11]} 39. Re3 {[%emt 0:00:27]} Bxf5 {[%emt 0:01:55]} 40. Rf2 {[%emt 0:00:39]} Bxd3 {[%emt 0:31:29]} 41. Rxd3 {[%emt 0:04:43]} Rh6 {[%emt 0:00:00]} 42. Rdf3 {[%emt 0:03:39]} Rgg6 {[%emt 0:00:00]} 43. h5 {[%emt 0:02:14]} e4 {[%emt 0:00:00]} 44. Qa4 {[%emt 0:01:14]} Kc8 {[%emt 0:00:00]} 45. hxg6 {[%emt 0:02:47]} exf3 {[%emt 0:00:00]} 46. gxf7 {[%emt 0:00:13]} Nd7 {[%emt 0:00:00]} 47. Rxf3 {[%emt 0:00:46]} Rh8 {[%emt 0:00:00]} 48. Qc6+ {[%emt 0:01:05]} Qc7 {[%emt 0:00:00]} 49. Bxd6 {[%emt 0:00:17]} 1-0

[Event "AICF Women GM 2018"]
[Site "Mumbai"]
[Date "2018.06.12"]
[Round "1"]
[White "Zozulia, Anna"]
[Black "Aakanksha, Hagawane"]
[Result "1/2-1/2"]
[ECO "C07"]
[WhiteElo "2314"]
[BlackElo "2297"]
[Annotator "NA"]
[PlyCount "80"]
[EventDate "2018.??.??"]
[EventType "tourn"]
[EventCountry "IND"]
[SourceTitle "playchess.com"]
[Source "ChessBase"]
[SourceQuality "1"]
[TimeControl "40/5400+30:1800+30"]

1. e4 {[%emt 0:00:00]} e6 {[%emt 0:00:13]} 2. d4 {[%emt 0:00:00]} d5 {[%emt 0:00:09]} 3. Nd2 {[%emt 0:00:56]} c5 {[%emt 0:00:28]} 4. exd5 Qxd5 {[%emt 0:00:09]} 5. Ngf3 {[%emt 0:00:52]} cxd4 {[%emt 0:00:22]} 6. Bc4 {[%emt 0:00:06]} Qd6 {[%emt 0:00:08]} 7. O-O {[%emt 0:00:06]} Nf6 {[%emt 0:00:18]} 8. Nb3 {[%emt 0:00:09]} Nc6 {[%emt 0:00:28]} 9. Nbxd4 {[%emt 0:00:06]} Nxd4 10. Qxd4 {[%emt 0:01:57]} Qxd4 {[%emt 0:02:53]} 11. Nxd4 {[%emt 0:01:14]} Bc5 {[%emt 0:00:34]} 12. Nf3 {[%emt 0:14:00]} O-O {[%emt 0:05:08]} 13. Bf4 {[%emt 0:07:39]} b6 {[%emt 0:05:04]} 14. Rad1 {[%emt 0:06:15]} Bb7 {[%emt 0:03:27]} 15. Ne5 {[%emt 0:00:18]} Rfd8 {[%emt 0:03:02]} 16. c3 {[%emt 0:02:42]} Rac8 {[%emt 0:02:15]} 17. Bb3 {[%emt 0:05:27]} Nd5 {[%emt 0:15:30]} 18. Bc1 {[%emt 0:02:42]} b5 {[%emt 0:04:56]} 19. a4 {[%emt 0:04:36]} b4 {[%emt 0:05:21]} 20. cxb4 {[%emt 0:27:38]} Bxb4 {[%emt 0:01:50]} 21. Bd2 {[%emt 0:03:15]} Bxd2 {[%emt 0:04:49]} 22. Rxd2 {[%emt 0:00:03]} Nf4 {[%emt 0:00:13]} 23. Rxd8+ {[%emt 0:00:19]} Rxd8 {[%emt 0:00:01]} 24. f3 {[%emt 0:00:17]} Rd2 {[%emt 0:01:34]} 25. Rf2 {[%emt 0:04:14]} Rd4 {[%emt 0:00:53]} 26. Rc2 {[%emt 0:10:03]} Rb4 {[%emt 0:09:48]} 27. Rd2 {[%emt 0:00:04]} Nd5 {[%emt 0:04:48]} 28. Bxd5 {[%emt 0:07:21]} exd5 {[%emt 0:04:37]} 29. Nd3 {[%emt 0:01:07]} Rxa4 {[%emt 0:01:44]} 30. Nc5 {[%emt 0:00:02]} Ra1+ {[%emt 0:00:09]} 31. Kf2 {[%emt 0:00:03]} Bc6 {[%emt 0:00:24]} 32. Nd3 {[%emt 0:01:51]} Ra4 {[%emt 0:01:16]} 33. b3 {[%emt 0:00:29]} Ra3 {[%emt 0:01:00]} 34. Nb4 {[%emt 0:00:31]} Bb7 {[%emt 0:00:05]} 35. Rd3 {[%emt 0:00:32]} f6 {[%emt 0:00:57]} 36. Nxd5 {[%emt 0:00:08]} Bxd5 {[%emt 0:00:34]} 37. Rxd5 {[%emt 0:00:04]} Rxb3 {[%emt 0:01:55]} 38. Rd8+ {[%emt 0:00:03]} Kf7 {[%emt 0:00:05]} 39. Rd7+ {[%emt 0:00:03]} Kg6 {[%emt 0:00:08]} 40. Rxa7 {[%emt 0:00:04]} Rb2+ {[%emt 0:30:08]} 1/2-1/2

[Event "AICF Women GM 2018"]
[Site "Mumbai"]
[Date "2018.06.12"]
[Round "1"]
[White "Rakshitta, Ravi"]
[Black "Vantika, Agrawal"]
[Result "0-1"]
[ECO "B23"]
[WhiteElo "2067"]
[BlackElo "2279"]
[Annotator "NA"]
[PlyCount "66"]
[EventDate "2018.??.??"]
[EventType "tourn"]
[EventCountry "IND"]
[SourceTitle "playchess.com"]
[Source "ChessBase"]
[SourceQuality "1"]
[TimeControl "40/5400+30:1800+30"]

1. e4 {[%emt 0:01:46]} c5 {[%emt 0:00:11]} 2. Nc3 {[%emt 0:00:23]} Nc6 {[%emt 0:00:55]} 3. f4 {[%emt 0:00:18]} g6 {[%emt 0:02:16]} 4. Nf3 {[%emt 0:00:12]} Bg7 {[%emt 0:00:39]} 5. Bc4 {[%emt 0:00:14]} e6 {[%emt 0:09:23]} 6. f5 {[%emt 0:00:39]} a6 {[%emt 0:26:05]} 7. fxe6 {[%emt 0:06:46]} dxe6 {[%emt 0:01:23]} 8. d3 {[%emt 0:02:27]} h6 {[%emt 0:08:43]} 9. Be3 {[%emt 0:10:34]} b6 {[%emt 0:06:27]} 10. O-O {[%emt 0:05:48]} Bb7 {[%emt 0:09:26]} 11. Qd2 {[%emt 0:11:26]} Nf6 {[%emt 0:07:36]} 12. h3 {[%emt 0:08:54]} Qe7 {[%emt 0:04:46]} 13. a4 {[%emt 0:10:13]} g5 {[%emt 0:04:05]} 14. Nxg5 {[%emt 0:05:28]} Ne5 {[%emt 0:09:29]} 15. Ba2 {[%emt 0:02:28]} O-O-O {[%emt 0:01:58]} 16. Qf2 {[%emt 0:02:32]} Nfg4 {[%emt 0:03:22]} 17. hxg4 {[%emt 0:01:06]} hxg5 {[%emt 0:00:25]} 18. a5 {[%emt 0:03:09]} Rh4 {[%emt 0:01:45]} 19. g3 {[%emt 0:15:35]} Rh3 {[%emt 0:00:20]} 20. Kg2 {[%emt 0:02:07]} Nxg4 {[%emt 0:00:37]} 21. Qf3 {[%emt 0:01:44]} Rh2+ {[%emt 0:00:32]} 22. Kg1 {[%emt 0:00:05]} Ne5 {[%emt 0:00:29]} 23. Kxh2 {[%emt 0:00:52]} Nxf3+ {[%emt 0:00:08]} 24. Rxf3 {[%emt 0:00:01]} g4 {[%emt 0:00:47]} 25. Rf2 {[%emt 0:00:39]} b5 {[%emt 0:00:37]} 26. Raf1 {[%emt 0:00:32]} f5 {[%emt 0:00:28]} 27. Kg1 {[%emt 0:02:10]} Be5 {[%emt 0:00:32]} 28. Bf4 {[%emt 0:01:10]} Bd4 {[%emt 0:00:19]} 29. Kg2 {[%emt 0:01:20]} Rh8 {[%emt 0:00:44]} 30. Re2 {[%emt 0:01:25]} c4 {[%emt 0:00:29]} 31. Ree1 {[%emt 0:00:59]} Rh3 {[%emt 0:00:23]} 32. Rh1 {[%emt 0:01:17]} Qh7 {[%emt 0:00:30]} 33. Ne2 {[%emt 0:01:40]} fxe4 {[%emt 0:00:33]} 0-1

[Event "AICF Women GM 2018"]
[Site "Mumbai"]
[Date "2018.06.13"]
[Round "3"]
[White "Vo, Thi Kim Phung"]
[Black "Tomilova, Elena"]
[Result "1-0"]
[ECO "E35"]
[WhiteElo "2376"]
[BlackElo "2334"]
[Annotator "NA"]
[PlyCount "89"]
[EventDate "2018.??.??"]
[EventType "tourn"]
[EventCountry "IND"]
[SourceTitle "playchess.com"]
[Source "ChessBase"]
[SourceQuality "1"]
[TimeControl "40/5400+30:1800+30"]

1. d4 {[%emt 0:00:00]} e6 {[%emt 0:00:05]} 2. c4 {[%emt 0:00:05]} Nf6 {[%emt 0:00:06]} 3. Nc3 {[%emt 0:00:13]} Bb4 {[%emt 0:00:05]} 4. Qc2 {[%emt 0:00:08]} d5 {[%emt 0:00:05]} 5. cxd5 {[%emt 0:00:23]} exd5 {[%emt 0:00:06]} 6. Bg5 {[%emt 0:00:15]} h6 {[%emt 0:00:06]} 7. Bh4 {[%emt 0:00:06]} g5 {[%emt 0:00:08] LiveBook: 38 Games E35: Nimzo-Indian: Classical: 4...d5 5 cxd5 exd5} (7... c5 8. dxc5 g5 9. Bg3 Ne4 10. e3 Nc6 11. Bd3 Nxg3 12. hxg3 d4 13. exd4 Qxd4 14. Nf3 Qxc5 15. O-O Be6 16. Rfc1 g4 17. Ne1 O-O-O 18. Be4 Kb8 {½-½ (27) Giri,A (2777)-Karjakin,S (2778) Shamkir 2018}) 8. Bg3 {[%emt 0:00:01]} Nc6 {[%emt 0:00:07]} 9. e3 {[%emt 0:01:25]} h5 {[%emt 0:00:07]} 10. h4 {[%emt 0:20:51]} Ne4 {[%emt 0:01:56]} 11. Bh2 {[%emt 0:02:20]} Bf5 {[%emt 0:00:32]} 12. Bd3 {[%emt 0:00:45]} gxh4 {[%emt 0:00:10]} 13. Nge2 {[%emt 0:10:10]} Nxc3 $146 {[%emt 0:15:16]} (13... Qg5 $11 {keeps the balance.} 14. Rg1 Ba5) ({Predecessor:} 13... Qe7 14. O-O-O Nxc3 15. Nxc3 Bxd3 16. Rxd3 {0-1 (30) Finsterwalder,S (2130)-Zatonskih,A (2443) Caleta 2017}) 14. Bxf5 {[%emt 0:03:33]} Ne4+ {[%emt 0:02:19] [#]} 15. Nc3 $1 {[%emt 0:00:22]} Qe7 {[%emt 0:00:16]} 16. Kf1 {[%emt 0:05:21]} Bxc3 {[%emt 0:13:53]} 17. bxc3 $16 {[%emt 0:00:17]} Kf8 {[%emt 0:00:21]} 18. Rb1 {[%emt 0:04:12]} b6 {[%emt 0:00:42]} 19. Rb5 {[%emt 0:02:39]} Rd8 {[%emt 0:03:04]} 20. Bxe4 {[%emt 0:08:38]} dxe4 {[%emt 0:00:57]} 21. Bf4 {[%emt 0:00:47]} a6 {[%emt 0:04:14]} 22. Bg5 {[%emt 0:01:54]} Qd7 {[%emt 0:06:45]} 23. Rb1 {[%emt 0:02:09]} Re8 {[%emt 0:00:32]} 24. Rxh4 {[%emt 0:00:32]} Qd5 {[%emt 0:03:49]} 25. Bf4 {[%emt 0:00:17]} Na5 {[%emt 0:02:55]} 26. Qe2 {[%emt 0:04:33]} Nc4 {[%emt 0:07:18]} 27. Bxc7 {[%emt 0:05:08]} b5 {[%emt 0:00:07]} 28. Bf4 {[%emt 0:00:51]} Kg7 {[%emt 0:05:58]} 29. g3 {[%emt 0:00:40]} Nb6 {[%emt 0:07:01]} 30. Bc7 {[%emt 0:10:09]} Na4 {[%emt 0:02:49]} 31. Ba5 {[%emt 0:01:25]} Rc8 {[%emt 0:02:02]} 32. Kg2 {[%emt 0:02:52]} Nxc3 {[%emt 0:09:10]} 33. Bxc3 {[%emt 0:00:02]} Rxc3 {[%emt 0:00:03]} 34. Rbh1 {[%emt 0:00:10]} Kg6 {[%emt 0:02:02]} 35. g4 {[%emt 0:01:28]} Ra3 {[%emt 0:01:05]} 36. Rxh5 {[%emt 0:05:02]} Rxh5 {[%emt 0:00:09]} 37. Rxh5 {[%emt 0:00:11]} Qxa2 {[%emt 0:01:36]} 38. Qe1 {[%emt 0:00:18]} Qe6 {[%emt 0:03:38]} 39. Rf5 {[%emt 0:00:16]} f6 {[%emt 0:03:30]} 40. Qh1 {[%emt 0:03:32]} Rc3 {[%emt 0:32:35]} 41. d5 {[%emt 0:33:25]} Qf7 {[%emt 0:00:00]} 42. Rh5 {[%emt 0:00:00]} Qg7 {[%emt 0:00:00]} 43. Rh8 {[%emt 0:00:00]} Kf7 {[%emt 0:00:00]} 44. Qh5+ {[%emt 0:00:00]} Ke7 {[%emt 0:00:00]} 45. Rh7 {[%emt 0:00:00]} 1-0

[Event "AICF Women GM 2018"]
[Site "Mumbai"]
[Date "2018.06.13"]
[Round "3"]
[White "Nakhbayeva, Guliskhan"]
[Black "Aakanksha Hagawane"]
[Result "1-0"]
[ECO "D85"]
[WhiteElo "2323"]
[BlackElo "2297"]
[Annotator "NA"]
[PlyCount "67"]
[EventDate "2018.??.??"]
[EventType "tourn"]
[EventCountry "IND"]
[SourceTitle "playchess.com"]
[Source "ChessBase"]
[SourceQuality "1"]
[TimeControl "40/5400+30:1800+30"]

1. d4 {[%emt 0:00:00]} Nf6 {[%emt 0:00:10]} 2. c4 {[%emt 0:00:00]} g6 {[%emt 0:00:07]} 3. Nc3 {[%emt 0:00:00]} d5 {[%emt 0:00:07]} 4. cxd5 {[%emt 0:00:00]} Nxd5 {[%emt 0:00:06]} 5. e4 {[%emt 0:00:00]} Nxc3 {[%emt 0:00:10]} 6. bxc3 {[%emt 0:00:01]} Bg7 {[%emt 0:00:06]} 7. Qa4+ {[%emt 0:00:04]} Nd7 {[%emt 0:02:33]} 8. Nf3 {[%emt 0:00:14]} O-O {[%emt 0:00:14]} 9. Be2 {[%emt 0:00:30]} c5 {[%emt 0:01:37]} 10. O-O {[%emt 0:00:08] D85: Exchange Grünfeld: Unusual White 7th moves and lines with 7 Nf3} cxd4 {[%emt 0:04:30]} 11. cxd4 {[%emt 0:00:05]} Nc5 {[%emt 0:00:47]} 12. dxc5 {[%emt 0:01:29]} Bxa1 {[%emt 0:00:14]} 13. e5 {[%emt 0:00:08]} Bc3 {[%emt 0:07:19] LiveBook: 3 Games} 14. Bh6 {[%emt 0:04:24]} Be6 {[%emt 0:03:38] [#]} 15. Rc1 $146 {[%emt 0:12:07]} ({Predecessor:} 15. Qh4 f6 16. Bc4 Bd5 17. Bxf8 Kxf8 {1-0 (36) Sadorra,J (2575)-Garcia,J (2396) Quezon City 2014}) 15... Qa5 {[%emt 0:03:41]} 16. Qh4 {[%emt 0:02:08]} Bb2 {[%emt 0:04:47]} (16... Qxa2 17. Qxe7 Qa4 18. Qf6 Bxe5 19. Nxe5 Qd1+ 20. Bxd1 Bf5 21. Qg7#) (16... Qxc5 $2 17. Bxf8 (17. Bd2 Qb4 $16) 17... Rxf8 18. Ng5 $18) 17. Rc2 {[%emt 0:09:04] [#]} (17. Rd1 $11 Rfe8 18. a4) 17... Qxa2 {[%emt 0:03:14]} (17... Bxe5 $1 $17 {[%mdl 512]} 18. Nxe5 Qe1+ 19. Bf1 Qxe5 20. Bxf8 Kxf8) 18. Qxe7 {[%emt 0:03:13]} Qa1+ $1 {[%emt 0:11:33]} (18... Qb1+ 19. Bf1 $18) 19. Bf1 $11 {[%emt 0:00:07]} Bxe5 {[%emt 0:00:11]} 20. Nxe5 {[%emt 0:03:16]} Qxe5 {[%emt 0:00:04]} 21. Bxf8 {[%emt 0:00:05]} Rxf8 {[%emt 0:00:08]} 22. Qxb7 {[%emt 0:00:15]} a5 {[%emt 0:07:29]} 23. c6 {[%emt 0:07:05]} Qe4 {[%emt 0:05:07]} 24. Rc1 {[%emt 0:06:56]} a4 {[%emt 0:03:32]} 25. Qe7 {[%emt 0:00:15]} Qd4 {[%emt 0:04:12]} 26. c7 {[%emt 0:02:37]} Qb2 {[%emt 0:02:29]} 27. Rd1 {[%emt 0:01:02]} Bc8 {[%emt 0:02:05]} 28. Rd8 {[%emt 0:01:31]} Qg7 {[%emt 0:00:08]} 29. h3 {[%emt 0:01:45]} h5 {[%emt 0:04:52]} 30. Bb5 {[%emt 0:00:59]} Qh6 {[%emt 0:02:37]} 31. Bxa4 {[%emt 0:02:22]} Qc1+ {[%emt 0:00:53]} 32. Bd1 {[%emt 0:00:04]} Qh6 {[%emt 0:00:04]} 33. Qd6 {[%emt 0:01:08]} Qg7 {[%emt 0:02:54]} 34. Ba4 {[%emt 0:01:15]} 1-0

[Event "AICF Women GM 2018"]
[Site "Mumbai"]
[Date "2018.06.13"]
[Round "3"]
[White "Zozulia, Anna"]
[Black "Tokhirjonova, Gulrukhbegim"]
[Result "1/2-1/2"]
[ECO "C41"]
[WhiteElo "2314"]
[BlackElo "2379"]
[Annotator "NA"]
[PlyCount "76"]
[EventDate "2018.??.??"]
[EventType "tourn"]
[EventCountry "IND"]
[SourceTitle "playchess.com"]
[Source "ChessBase"]
[SourceQuality "1"]
[TimeControl "40/5400+30:1800+30"]

1. e4 {[%emt 0:00:00]} e5 {[%emt 0:00:12]} 2. Nf3 {[%emt 0:00:00]} d6 {[%emt 0:00:19]} 3. d4 {[%emt 0:00:13]} exd4 {[%emt 0:00:07]} 4. Nxd4 {[%emt 0:00:18]} Nf6 {[%emt 0:00:13]} 5. Nc3 {[%emt 0:00:04]} Be7 {[%emt 0:00:13]} 6. Bc4 {[%emt 0:02:02]} c6 {[%emt 0:00:55]} 7. a4 {[%emt 0:03:41]} O-O {[%emt 0:00:36]} 8. O-O {[%emt 0:02:12]} Re8 {[%emt 0:00:18] C41: Philidor Defence} 9. Ba2 {[%emt 0:04:20]} Bf8 {[%emt 0:01:46]} 10. Re1 {[%emt 0:06:18]} Nbd7 {[%emt 0:00:25]} 11. Bg5 {[%emt 0:14:38] LiveBook: 6 Games} h6 {[%emt 0:01:25]} 12. Bh4 {[%emt 0:00:54]} Ne5 {[%emt 0:01:22]} 13. f3 $146 {[%emt 0:08:38]} ({Predecessor:} 13. Bg3 Bg4 14. f3 Bd7 15. Qd2 Be7 16. Rad1 {1-0 (62) Salgado Lopez,I (2622)-Chigaev,M (2494) Wroclaw 2014}) 13... Ng6 {[%emt 0:06:36]} 14. Bf2 {[%emt 0:00:32]} Bd7 {[%emt 0:00:16]} 15. Qd2 {[%emt 0:01:00]} Qc7 {[%emt 0:03:00]} 16. Rad1 {[%emt 0:02:09]} a6 {[%emt 0:01:27]} 17. Nf5 {[%emt 0:15:38]} Bxf5 {[%emt 0:07:17]} 18. exf5 {[%emt 0:00:02]} Ne5 {[%emt 0:00:29]} 19. Ne4 {[%emt 0:01:31]} Nxe4 $11 {[%emt 0:01:14]} 20. fxe4 {[%emt 0:00:29]} Ng4 {[%emt 0:01:13]} 21. Bg3 {[%emt 0:06:24]} Qb6+ {[%emt 0:01:52]} 22. Qd4 {[%emt 0:00:14]} Qxd4+ {[%emt 0:02:41]} 23. Rxd4 {[%emt 0:00:04]} d5 {[%emt 0:00:12]} 24. b4 {[%emt 0:00:10]} Rxe4 {[%emt 0:07:44]} 25. Rexe4 {[%emt 0:04:52]} dxe4 {[%emt 0:00:11]} 26. Rd7 {[%emt 0:02:51]} Bxb4 {[%emt 0:00:16]} 27. Bxf7+ {[%emt 0:06:34]} Kh8 {[%emt 0:00:50]} 28. Rxb7 {[%emt 0:03:20]} Bc5+ {[%emt 0:01:11]} 29. Kf1 {[%emt 0:00:05]} Ne3+ {[%emt 0:01:32]} 30. Ke2 {[%emt 0:00:03]} Nxf5 {[%emt 0:00:19]} 31. Be5 {[%emt 0:13:48]} Ra7 {[%emt 0:04:06]} 32. Rxa7 {[%emt 0:00:57]} Bxa7 {[%emt 0:00:02]} 33. Be8 {[%emt 0:01:48]} Ne7 {[%emt 0:03:45]} 34. Bd6 {[%emt 0:00:23]} Nf5 {[%emt 0:00:11]} 35. Be5 {[%emt 0:00:35]} Ne7 {[%emt 0:01:11]} 36. Bd6 {[%emt 0:00:15]} Nf5 {[%emt 0:00:40]} 37. Be5 {[%emt 0:00:10]} Ne7 {[%emt 0:03:01]} 38. Bd6 {[%emt 0:00:38]} Nf5 1/2-1/2

[Event "AICF Women GM 2018"]
[Site "Mumbai"]
[Date "2018.06.13"]
[Round "3"]
[White "Srija, Seshadri"]
[Black "Monnisha G K"]
[Result "0-1"]
[ECO "C77"]
[WhiteElo "2207"]
[BlackElo "2295"]
[Annotator "NA"]
[PlyCount "72"]
[EventDate "2018.??.??"]
[EventType "tourn"]
[EventCountry "IND"]
[SourceTitle "playchess.com"]
[Source "ChessBase"]
[SourceQuality "1"]
[TimeControl "40/5400+30:1800+30"]

1. e4 {[%emt 0:00:00]} e5 {[%emt 0:00:19]} 2. Nf3 {[%emt 0:00:01]} Nc6 {[%emt 0:00:08]} 3. Bb5 {[%emt 0:00:06]} a6 {[%emt 0:00:04]} 4. Ba4 {[%emt 0:00:05]} Nf6 {[%emt 0:00:07]} 5. d3 {[%emt 0:00:08]} Be7 {[%emt 0:00:07]} (5... b5 $11 {keeps the balance.} 6. Bb3 Bc5) 6. Nc3 {[%emt 0:01:27]} b5 {[%emt 0:00:26]} 7. Bb3 {[%emt 0:00:06]} Bb7 {[%emt 0:00:33] C77: Ruy Lopez: 3...a6 4 Ba4 Nf6, unusual lines} 8. a4 {[%emt 0:03:16]} b4 {[%emt 0:06:11]} 9. Nd5 {[%emt 0:00:11]} Na5 {[%emt 0:01:41] LiveBook: 6 Games} 10. Ba2 {[%emt 0:00:29]} Nxd5 {[%emt 0:01:16]} 11. exd5 $146 {[%emt 0:00:09] [#]} ({Predecessor:} 11. Bxd5 Bxd5 12. exd5 d6 13. O-O O-O 14. Qe1 c5 15. Nd2 Qd7 {½-½ (30) Rublevsky,S (2697)-Pridorozhni,A (2548) Moscow 2010}) 11... b3 $1 {[%emt 0:03:47]} 12. Qd2 {[%emt 0:05:43] [#]} c5 $1 {[%emt 0:02:39]} ({Doch nicht} 12... Bxd5 $6 13. Qxa5 Bxf3 14. Bxb3 $14) 13. cxb3 {[%emt 0:09:14]} Bxd5 {[%emt 0:00:33]} 14. Nxe5 {[%emt 0:01:20]} O-O {[%emt 0:08:06]} 15. O-O {[%emt 0:04:10]} Nxb3 {[%emt 0:01:25]} 16. Bxb3 {[%emt 0:00:09]} Bxb3 {[%emt 0:00:07]} 17. a5 {[%emt 0:11:32]} Bf6 {[%emt 0:03:21]} 18. Nc4 {[%emt 0:02:37]} Rb8 $11 {[%emt 0:04:11]} 19. Nb6 {[%emt 0:01:48]} Re8 {[%emt 0:04:40]} 20. Ra3 {[%emt 0:04:27]} Be6 {[%emt 0:00:44]} 21. Qc2 {[%emt 0:03:11]} d6 {[%emt 0:02:06]} 22. Bf4 {[%emt 0:01:32]} Bd4 {[%emt 0:02:48]} 23. Ra4 {[%emt 0:04:15]} Qf6 {[%emt 0:04:03]} 24. Qd2 {[%emt 0:05:53]} Bf5 {[%emt 0:07:40]} 25. h4 {[%emt 0:19:46]} Qg6 {[%emt 0:07:08]} 26. Kh2 {[%emt 0:04:56]} Bxd3 {[%emt 0:03:33]} 27. Re1 {[%emt 0:00:05]} Rxe1 {[%emt 0:07:00]} 28. Qxe1 {[%emt 0:00:02]} Be4 {[%emt 0:02:02]} 29. f3 {[%emt 0:02:43]} Bc6 {[%emt 0:02:43]} 30. Ra2 {[%emt 0:04:38]} Re8 {[%emt 0:00:30]} 31. Qg3 {[%emt 0:00:39]} Qb1 {[%emt 0:05:15]} 32. Ra3 {[%emt 0:00:12]} Re1 {[%emt 0:01:04]} 33. Qg5 Rh1+ {[%emt 0:00:19]} 34. Kg3 {[%emt 0:01:39]} Qe1+ {[%emt 0:00:07]} 35. Kg4 {[%emt 0:00:04]} Qe6+ {[%emt 0:00:05]} 36. Qf5 {[%emt 0:00:26]} h5+ {[%emt 0:00:13]} 0-1